Cogmind - Beta 14 X2 @@@ ROGUE MODE // 2024.07.29 @ 12:30:06 Player: UnifiBg Result: Destroyed by G-50 Soldier with Heavy Laser Performance ------------- Evolutions (4) 2000 Regions Visited (9) 1800 Robots Destroyed (117) 585 Value Destroyed (4028) 4028 Prototype IDs (37) 740 Alien Tech Used (0) 0 Bonus (612) 612 TOTAL SCORE: 9765 Bonus ------- High Alert Combat Kills 428 Aligned with FarCom 300 Friendly Fire -116 Cogmind --------- Core Integrity 0/850 Matter 179/300 Energy 99/100 System Corruption 31% Temperature Cool (9) Movement Treading (160) Location -6/Factory Parts ------- > --- POWER (2) -------- (None) > --- PROPULSION (4) --- Light Treads Carbon-fiber Leg > --- UTILITY (6) ------ Spectral Analyzer Improved Signal Interpreter Targeting Computer > --- WEAPON (3) ------- Great Maul > --- INVENTORY (5) ---- PL-3XN's Ring of Power Peak State ------------ > --- POWER ------------ Heavy Deuterium Engine Fission Core > --- PROPULSION ------- Improved Carbon-fiber Leg Improved Titanium Leg Flexi-carbon Leg Enhanced Armored Leg > --- UTILITY ---------- Medium Storage Unit High-capacity Matter Pod Spectral Analyzer Advanced Sensor Array Improved Signal Interpreter Targeting Computer > --- WEAPON ----------- Advanced Variable Charge Gun Advanced Variable Charge Gun Precision Rocket Launcher > --- INVENTORY -------- Carbon-fiber Leg Improved Particle Charger Recalibrator Improved Lightning Gun Heavy Proton Cannon Gauss Rifle Heavy Machine Gun Assault Cannon Great Maul PL-3XN's Ring of Power [Rating: 76] Favorites ----------- Power Heavy Deuterium Engine Engine Heavy Deuterium Engine Power Core Fission Core Propulsion Medium Treads Treads Medium Treads Leg Carbon-fiber Leg Wheel Wheel Flight Unit Cesium-ion Thruster Utility Medium Storage Unit Device Recalibrator Storage Medium Storage Unit Processor Improved Signal Interpreter Protection Hardened Medium Armor Plating Weapon AWS/Gauss Energy Gun Advanced Variable Charge Gun Energy Cannon Plasma Cannon Ballistic Gun AWS/Gauss Ballistic Cannon Assault Cannon Launcher Precision Rocket Launcher Impact Weapon Great Maul Build | -11 -10 -10 -10 -9 -8 -7 -6 -6 -6 ------- Run | Yrd Mat Min Exi Min Mat Fac Fac Was Fac Slots Evolved 8 | . . . . . 4 2 2 . . Power 1 | . . . . . . . 1 . . Propulsion 2 | . . . . . 2 . . . . Utility 4 | . . . . . 2 1 1 . . Weapon 1 | . . . . . . 1 . . . Parts Attached 167 | 9 1 . 1 . 49 40 53 2 12 Power 11 | 1 . . . . 7 . 2 . 1 Engine 10 | 1 . . . . 7 . 1 . 1 Core 1 | . . . . . . . 1 . . Reactor . | . . . . . . . . . . Propulsion 41 | 3 . . . . 22 5 7 . 4 Treads 18 | . . . . . 13 3 . . 2 Leg 11 | . . . . . 1 2 7 . 1 Wheel 10 | 3 . . . . 6 . . . 1 Hover . | . . . . . . . . . . Flight 2 | . . . . . 2 . . . . Utility 50 | 3 1 . . . 11 17 15 . 3 Device 26 | 2 . . . . 6 9 7 . 2 Storage 10 | 1 1 . . . 4 2 2 . . Processor 5 | . . . . . 1 . 3 . 1 Hackware . | . . . . . . . . . . Protection 9 | . . . . . . 6 3 . . Artifact . | . . . . . . . . . . Weapon 65 | 2 . . 1 . 9 18 29 2 4 Energy Gun 14 | . . . . . 1 2 10 . 1 Energy Cannon 5 | . . . . . 1 2 2 . . Ballistic Gun 26 | 2 . . 1 . 5 13 4 . 1 Ballistic Cannon 4 | . . . . . . . 3 . 1 Launcher 7 | . . . . . 2 . 3 2 . Special Weapon . | . . . . . . . . . . Impact Weapon 9 | . . . . . . 1 7 . 1 Slashing Weapon . | . . . . . . . . . . Piercing Weapon . | . . . . . . . . . . Special Melee Weapon . | . . . . . . . . . . Unidentified Prototypes 13 | . . . 1 . 3 1 8 . . Corrupted Parts 2 | . . . . . . . . . 2 System Corruption 5 | . . . . . . . . . 5 Parts Lost 26 | . . . . . 5 3 6 4 8 Power 1 | . . . . . . . 1 . . Propulsion 14 | . . . . . 5 3 2 2 2 Utility 5 | . . . . . . . 2 . 3 Weapon 6 | . . . . . . . 1 2 3 Highest Loss Streak 6 | . . . . . 2 3 2 2 6 To Critical Strikes . | . . . . . . . . . . Average Slot Usage (%) 89 | . 100 100 91 85 88 91 94 77 58 Engine 8 | . 14 14 14 14 9 7 9 3 . Treads 14 | . . . . . 23 29 5 . 4 Leg 7 | . . . . . . . 20 21 . Wheel 5 | . 28 28 28 28 11 . . . 5 Device 7 | . 14 14 14 14 8 3 8 5 4 Storage 19 | . 14 14 14 14 25 22 17 12 5 Processor 7 | . . . . . . 7 11 20 20 Protection 1 | . . . . . . 2 1 . . Energy Gun 3 | . . . . . . 2 6 8 . Ballistic Gun 9 | . 28 28 19 14 8 11 5 . 5 Impact Weapon 1 | . . . . . . . 2 . 5 Naked Turns . | . . . . . . . . . . Heaviest Build 80 | 11 16 16 24 24 36 50 80 54 22 Greatest Support 112 | 26 20 20 20 20 112 112 78 78 28 Greatest Overweight (x) 2 | . . . 1 1 1 . 2 1 1 Average Overweight (x) . | . . . . 1 . . . . . Largest Inventory Capacity 20 | 8 10 10 10 10 10 10 20 10 5 Average Capacity 9 | 7 9 10 10 10 10 10 10 9 5 Most Carried 11 | 8 8 10 10 10 10 10 11 10 5 Average Carried 8 | 5 7 8 9 10 9 9 9 9 1 Final Capacity 10 | 8 10 10 10 10 10 10 10 5 5 Final Carried 10 | 8 8 10 10 10 10 9 10 5 1 Class Distribution -------------------- 41% | Skirmisher 38% | Mutant 9% | Assassin 7% | Scavenger-Mutant Dominant Class ---------------- Mutant | -10/Materials Mutant | -10/Mines Mutant | -10/Exiles Mutant | -9/Mines Skirmisher | -8/Materials Skirmisher | -7/Factory Skirmisher | -6/Factory Mutant | -6/Waste Mutant | -6/Factory Resources | -11 -10 -10 -10 -9 -8 -7 -6 -6 -6 ----------- Run | Yrd Mat Min Exi Min Mat Fac Fac Was Fac Matter Collected 3068 | 315 . 12 . 7 772 491 1053 . 418 Remotely 192 | 192 . . . . . . . . . Salvage Created 4443 | 169 . 35 . 119 1944 524 1292 . 360 Parts 252 | 15 . 3 . 5 116 38 65 . 10 Haulers Intercepted 1 | . . . . . 1 . . . . Recyclers Shooed 4 | . . . . . . . 4 . . Parts Field Recycled . | . . . . . . . . . . Retrieved Matter . | . . . . . . . . . . Parts Self-Destructed . | . . . . . . . . . . Prevented . | . . . . . . . . . . Kills | -11 -10 -10 -10 -9 -8 -7 -6 -6 -6 ------- Run | Yrd Mat Min Exi Min Mat Fac Fac Was Fac Combat Hostiles Destroyed 84 | . . 2 . 3 40 13 19 . 7 Guns 59 | . . 2 . 3 31 11 10 . 2 Cannons 9 | . . . . . 2 2 5 . . AOE 15 | . . . . . 7 . 4 . 4 Classes Destroyed 17 | 2 . 1 . 2 9 1 2 . . Worker 7 | . . . . . 1 . 5 . 1 Builder 6 | . . . . . 4 . 1 . 1 Tunneler 3 | 3 . . . . . . . . . Hauler 1 | . . . . . 1 . . . . Recycler 7 | 1 . . . . 2 . 4 . . Operator 2 | . . . . . 2 . . . . Watcher 6 | . . . . . 4 . 2 . . Swarmer 19 | . . 2 . . 13 4 . . . Grunt 32 | . . . . 2 19 3 5 . 3 Brawler 3 | . . . . . 2 . . . 1 Duelist 2 | . . . . 1 1 . . . . Protector 1 | . . . . . . . 1 . . Sentry 5 | . . . . . 3 1 . . 1 Specialist 3 | . . . . . . . 3 . . Hunter 3 | . . . . . 1 . 2 . . Programmer 15 | . . . . . . 5 8 . 2 Heavy 1 | . . . . . 1 . . . . Guerrilla 1 | . . . . . . . 1 . . Best Kill Streak 7 | 1 . 2 . 3 7 5 7 . 4 Combat Bots Only 5 | . . 2 . 3 5 5 3 . 4 Max Kills in Single Turn 4 | 1 . 2 . 1 3 1 3 . 4 Gunslinging 1 | . . 1 . . . . . . . Exploded 4 | . . . . . 2 . 2 . 4 Melee . | . . . . . . . . . . Uniques/NPCs Destroyed . | . . . . . . . . . . Combat | -11 -10 -10 -10 -9 -8 -7 -6 -6 -6 -------- Run | Yrd Mat Min Exi Min Mat Fac Fac Was Fac Hostile Shots Fired 569 | . . . . 1 121 113 142 4 188 Missed 176 | . . . . . 38 30 46 . 62 Damage Taken 6314 | 7 . 6 . 18 1447 1458 1759 185 1434 Core 1198 | 7 . 6 . . 29 296 261 48 551 Absorbed by Shields . | . . . . . . . . . . Core Remaining (%) 85 | 97 . . . 94 94 57 . . . Volleys Fired 168 | 14 . 1 . . 17 43 70 1 22 Largest 3 | 2 . 2 . . 2 3 3 3 2 Hottest 240 | 40 . 40 . . 98 166 240 203 74 Shots Fired 519 | 25 . 2 . 9 193 86 176 3 25 Gun 438 | 25 . 2 . 9 177 82 119 2 22 Cannon 51 | . . . . . 9 4 35 . 3 Launcher 30 | . . . . . 7 . 22 1 . Special . | . . . . . . . . . . Kinetic 360 | 25 . 2 . 9 172 57 75 . 20 Thermal 113 | . . . . . 14 29 68 2 . Explosive 30 | . . . . . 7 . 22 1 . Electromagnetic 16 | . . . . . . . 11 . 5 Robot Hit Streak 20 | 8 . 3 . 12 20 10 9 . 7 Robot Miss Streak 6 | 2 . . . . 6 4 2 . 2 Penetration Max 1 | . . . . . . . 1 . . Secondary Targets 3 | . . 1 . . . 1 1 . . Max Gunslinging Chain 1 | . . 1 . . . 1 1 . . Autonomous 202 | . . . . 9 166 19 8 . . Shots Hit Robots 338 | 15 . 2 . 9 142 49 93 . 28 Core Hits 193 | 8 . 2 . 3 80 23 67 . 10 Critical Kills 3 | 1 . . . . 1 . 1 . . Critical Parts Destroyed 2 | . . . . . 1 . 1 . . Critical Strikes 6 | 1 . . . . 2 1 2 . . Burn 1 | . . . . . . 1 . . . Destroy 5 | 1 . . . . 2 . 2 . . Melee Attacks 54 | . . . . . . 7 27 . 20 Impact 54 | . . . . . . 7 27 . 20 Slashing . | . . . . . . . . . . Piercing . | . . . . . . . . . . Sneak Attacks 3 | . . . . . . . . . 3 Combat Hostiles . | . . . . . . . . . . Follow-up Attacks . | . . . . . . . . . . Damage Inflicted 12017 | 124 . 19 . 283 5132 956 4149 . 1354 Guns 7620 | 123 . 19 . 271 4368 868 1597 . 374 Cannons 962 | . . . . . 175 88 647 . 52 Explosions 2891 | . . . . . 589 . 1899 . 403 Melee 525 | . . . . . . . . . 525 Ramming 19 | 1 . . . 12 . . 6 . . Kinetic 6708 | 123 . 19 . 271 4348 554 1043 . 350 Thermal 2156 | . . . . . 195 402 1156 . 403 Explosive 2488 | . . . . . 589 . 1899 . . Electromagnetic 121 | . . . . . . . 45 . 76 Impact 525 | . . . . . . . . . 525 Slashing . | . . . . . . . . . . Piercing . | . . . . . . . . . . Highest Corruption 31 | . . . . . . 1 5 23 31 Average Corruption 7 | . . . . . . 1 2 16 23 Corruption Purged 5 | . . . . . . 1 4 . . Corruption Blocked . | . . . . . . . . . . Effects 87 | . . . . . . 6 26 10 45 Message Errors 10 | . . . . . . . 6 1 3 Matter Fused 21 | . . . . . . 3 7 1 10 Heat Flow Errors 11 | . . . . . . 2 3 . 6 Energy Discharges 14 | . . . . . . . 4 . 10 Parts Rejected 4 | . . . . . . . . 2 2 Data Loss (minor) 7 | . . . . . . . 4 . 3 Data Loss (major) 4 | . . . . . . . . 2 2 Misfires 3 | . . . . . . . 1 . 2 Alerts 6 | . . . . . . 1 1 1 3 Misdirections 5 | . . . . . . . . 3 2 Weapon Failures 2 | . . . . . . . . . 2 Overload Shots 1 | . . . . . . . 1 . . Overflow Damage 264 | . . . . . . . 24 . 240 Projectiles . | . . . . . . . . . . Explosions 112 | . . . . . . . 24 . 88 Melee 152 | . . . . . . . . . 152 Knockbacks 7 | . . . . . . . 3 . 4 Impact 4 | . . . . . . . . . 4 Kinetic 3 | . . . . . . . 3 . . Secondary . | . . . . . . . . . . Self-Inflicted Damage 207 | . . . . 6 . . . . 201 Shots 2 | . . . . . . . . . 2 Rammed 6 | 2 . . . 1 . . 3 . . Targets Rammed 6 | 2 . . . 1 . . 3 . . Kicked . | . . . . . . . . . . Crushed . | . . . . . . . . . . Highest Temperature 628 | . . . . . 120 600 628 111 249 Average Temperature 172 | . . . . . 49 300 147 58 87 Received Heat Transfer 1257 | . . . . 6 387 348 165 . 351 Effects 29 | . . . . . . 13 16 . . Shutdowns 9 | . . . . . . 4 5 . . Energy Bleed 4 | . . . . . . 2 2 . . Interference 3 | . . . . . . 1 2 . . Matter Decay 7 | . . . . . . 2 5 . . Short Circuit 2 | . . . . . . 1 1 . . Damage (minor) 1 | . . . . . . 1 . . . Damage (core) 3 | . . . . . . 2 1 . . Siege Activations . | . . . . . . . . . . Robots Corrupted 3 | . . . . . . . . . 3 Combat Hostiles 1 | . . . . . . . . . 1 Parts Fried 1 | . . . . . . . . . 1 Impact Corruptions 7 | . . . . . . . . . 7 Robots Melted . | . . . . . . . . . . Combat Hostiles . | . . . . . . . . . . Parts Melted 5 | . . . . . . 3 2 . . Heat Transferred 3092 | . . . . . 296 833 1663 . 300 Parts Sabotaged . | . . . . . . . . . . Parts Stolen . | . . . . . . . . . . Parts Stripped . | . . . . . . . . . . Power Chain Reactions . | . . . . . . . . . . Alert | -11 -10 -10 -10 -9 -8 -7 -6 -6 -6 ------- Run | Yrd Mat Min Exi Min Mat Fac Fac Was Fac Peak Influence 893 | 20 43 40 . 76 893 351 452 170 212 Initial 327 | . 13 . . . 29 327 97 158 87 Average 182 | 10 18 25 . 18 426 97 182 149 79 Maximum Alert Level 3 | . . . . . 3 1 2 . 1 Low Security (%) 71 | 100 100 100 . 100 31 87 66 100 97 Level 1 12 | . . . . . 18 12 13 . 2 Level 2 10 | . . . . . 16 . 19 . . Level 3 6 | . . . . . 33 . . . . Level 4 . | . . . . . . . . . . Level 5 . | . . . . . . . . . . High Security . | . . . . . . . . . . Max Security . | . . . . . . . . . . Squads Dispatched 33 | . 1 . . . 6 7 15 . 4 Investigation 3 | . . . . . . 1 1 . 1 Extermination 13 | . . . . . . 5 6 . 2 Reinforcement 12 | . 1 . . . 3 . 7 . 1 Assault 4 | . . . . . 3 . 1 . . Garrison 1 | . . . . . . 1 . . . Intercept . | . . . . . . . . . . Searches Triggered . | . . . . . . . . . . Construction Impeded 2 | . . . . . 1 . . . 1 Haulers Reinforced 1 | . . . . . . . 1 . . Active Scanning Responses . | . . . . . . . . . . Cargo Convoy Interrupts 1 | . . . . . . . 1 . . Stealth | -11 -10 -10 -10 -9 -8 -7 -6 -6 -6 --------- Run | Yrd Mat Min Exi Min Mat Fac Fac Was Fac Distress Signals 4 | . . . . . 2 . 2 . . Communications Jammed . | . . . . . . . . . . Distress Signals . | . . . . . . . . . . Times Spotted 125 | . 2 3 . 2 49 17 39 6 7 Peak Tracking Total 6 | . 1 3 . 2 5 6 5 6 3 Tactical Retreats 9 | . . . . . 2 2 4 . 1 Traps | -11 -10 -10 -10 -9 -8 -7 -6 -6 -6 ------- Run | Yrd Mat Min Exi Min Mat Fac Fac Was Fac Traps Triggered 4 | . . . . . 1 1 1 . 1 Indirectly . | . . . . . . . . . . Trap Hack Attempts . | . . . . . . . . . . Triggered . | . . . . . . . . . . Disarmed . | . . . . . . . . . . Reprogrammed . | . . . . . . . . . . Reused . | . . . . . . . . . . Traps Extracted . | . . . . . . . . . . Installed . | . . . . . . . . . . Triggered 2 | . . . . . . . 2 . . Machines | -11 -10 -10 -10 -9 -8 -7 -6 -6 -6 ---------- Run | Yrd Mat Min Exi Min Mat Fac Fac Was Fac Machines Disabled 9 | . . . . . 2 . 2 . 5 Max in Single Turn 4 | . . . . . 1 . 1 . 4 Garrison Access 2 | . . . . . . 1 1 . . Machines Repaired . | . . . . . . . . . . Machines Dismantled . | . . . . . . . . . . Machines Sabotaged . | . . . . . . . . . . Overloaded Fab Kills . | . . . . . . . . . . Hacking | -11 -10 -10 -10 -9 -8 -7 -6 -6 -6 --------- Run | Yrd Mat Min Exi Min Mat Fac Fac Was Fac Machines Accessed 26 | . 1 . 5 1 7 7 5 . . Terminals 17 | . 1 . . 1 7 5 3 . . Fabricators 1 | . . . . . . 1 . . . Repair Stations . | . . . . . . . . . . Recycling Units 2 | . . . . . . . 2 . . Scanalyzers . | . . . . . . . . . . Garrison Access 1 | . . . . . . 1 . . . Total Hacks 102 | . 4 . 50 3 21 13 11 . . Successful 72 | . 2 . 50 1 11 4 4 . . Failed 30 | . 2 . . 2 10 9 7 . . Catastrophic 6 | . 1 . . . 1 1 3 . . Database Lockouts . | . . . . . . . . . . Manual 33 | . 4 . 1 3 9 9 7 . . Terminals 45 | . 4 . . 3 21 10 7 . . Fabricators 2 | . . . . . . 2 . . . Repair Stations . | . . . . . . . . . . Recycling Units 4 | . . . . . . . 4 . . Scanalyzers . | . . . . . . . . . . Garrison Access 1 | . . . . . . 1 . . . Terminal Hacks 61 | . 1 . 50 . 9 1 . . . Record 51 | . . . 49 . 2 . . . . Robot Analysis 2 | . . . . . 2 . . . . Prototype ID Bank 1 | . . . . . 1 . . . . Open DSF 1 | . . . . . . 1 . . . Alert Level 1 | . . . . . 1 . . . . Unreport Threat 3 | . 1 . . . 2 . . . . Zone Layout 1 | . . . . . 1 . . . . Derelict Proto ID Bank 1 | . . . 1 . . . . . . Fabricator Hacks . | . . . . . . . . . . Repair Station Hacks . | . . . . . . . . . . Recycling Unit Hacks 2 | . . . . . . . 2 . . Retrieve Components 2 | . . . . . . . 2 . . Scanalyzer . | . . . . . . . . . . Garrison Access Hacks 1 | . . . . . . 1 . . . Seal Access 1 | . . . . . . 1 . . . Unauthorized Hacks 8 | . 1 . . 1 2 2 2 . . Terminals 8 | . 1 . . 1 2 2 2 . . Botnet 8 | . 1 . . 1 2 2 2 . . Fabricators . | . . . . . . . . . . Repair Stations . | . . . . . . . . . . Recycling Units . | . . . . . . . . . . Scanalyzers . | . . . . . . . . . . Garrison Access . | . . . . . . . . . . Data Cores Recovered 2 | . . . . . 2 . . . . Used . | . . . . . . . . . . Hacking Detections 18 | . 1 . . 1 7 5 4 . . Full Trace Events 2 | . . . . . . 1 1 . . Feedback Events . | . . . . . . . . . . Feedback Blocked . | . . . . . . . . . . Robot Schematics Acquired . | . . . . . . . . . . Robots Built . | . . . . . . . . . . Authchips . | . . . . . . . . . . Time . | . . . . . . . . . . Total Robot Build Rating . | . . . . . . . . . . Part Schematics Acquired . | . . . . . . . . . . Parts Built . | . . . . . . . . . . Authchips . | . . . . . . . . . . Time . | . . . . . . . . . . Total Part Build Rating . | . . . . . . . . . . Parts Repaired . | . . . . . . . . . . Time . | . . . . . . . . . . Parts Recycled . | . . . . . . . . . . Recycled Matter . | . . . . . . . . . . Retrieved Matter . | . . . . . . . . . . Retrieved Components 11 | . . . . . . . 11 . . Parts Scanalyzed . | . . . . . . . . . . Part Schematics Acquired . | . . . . . . . . . . Parts Damaged . | . . . . . . . . . . Bothacking | -11 -10 -10 -10 -9 -8 -7 -6 -6 -6 ------------ Run | Yrd Mat Min Exi Min Mat Fac Fac Was Fac Used RIF Installer . | . . . . . . . . . . Robots Hacked . | . . . . . . . . . . Non-combat . | . . . . . . . . . . Combat . | . . . . . . . . . . Robot Hacks Applied . | . . . . . . . . . . Relay Couplers Released 5 | . . . . . . . 5 . . Machine Destruction 1 | . . . . . . . 1 . . Programmers 4 | . . . . . . . 4 . . Fabnet Peak Effective % . | . . . . . . . . . . Robots Rewired . | . . . . . . . . . . Allies Hacked . | . . . . . . . . . . Hacks Repelled . | . . . . . . . . . . Allies | -11 -10 -10 -10 -9 -8 -7 -6 -6 -6 -------- Run | Yrd Mat Min Exi Min Mat Fac Fac Was Fac Total Allies 1 | . . . . . . . . 1 . Largest Group 1 | . . . . . . . . 1 . Highest-Rated Group 31 | . . . . . . . . 31 . Highest-Rated Ally 31 | . . . . . . . . 31 . Total Orders . | . . . . . . . . . . Ally Attacks 11 | . . . . . . . . 11 . Total Damage 168 | . . . . . . . . 168 . Kills . | . . . . . . . . . . Allies Corrupted . | . . . . . . . . . . Allies Melted . | . . . . . . . . . . Intel | -11 -10 -10 -10 -9 -8 -7 -6 -6 -6 ------- Run | Yrd Mat Min Exi Min Mat Fac Fac Was Fac Robot Analysis Total 2 | . . . . . 2 . . . . Derelict Logs Recovered . | . . . . . . . . . . Drone Launches . | . . . . . . . . . . Drone Recoveries . | . . . . . . . . . . Exploration | -11 -10 -10 -10 -9 -8 -7 -6 -6 -6 ------------- Run | Yrd Mat Min Exi Min Mat Fac Fac Was Fac Turns Passed 11574 | 237 165 195 608 136 2004 3142 3992 168 927 Spaces Moved 7372 | 202 184 229 682 115 1372 1855 2265 120 348 Core 52 | 4 . . . . . . . 16 32 Treads 3230 | . . . . . 685 1855 686 . 4 Legs 1702 | . . . . . . . 1579 104 19 Wheels 2388 | 198 184 229 682 115 687 . . . 293 Hover . | . . . . . . . . . . Flight . | . . . . . . . . . . Fastest Speed 50 | 50 80 80 80 95 80 155 120 100 100 Average Speed 127 | 88 80 80 88 95 122 156 136 119 102 Slowest Speed 260 | 100 80 80 95 95 170 160 260 125 190 Overloaded Moves . | . . . . . . . . . . Propulsion Burnouts . | . . . . . . . . . . Robots Hopped . | . . . . . . . . . . Cave-ins Triggered . | . . . . . . . . . . Exploration Rate (%) 37 | 6 25 46 94 18 68 19 23 73 4 Regions Visited 9 Branch Regions 3 Pre-discovered Areas 1 | . . . 1 . . . . . . Known Exits Taken 2 | . . . . . 1 1 . . . Unknown Exits Taken 5 | 1 1 1 1 1 . . . . . Scrap Searched 1 | . . 1 . . . . . . . Spaces Dug 42 | . . . . . . 7 30 . 5 Terrain Destroyed 387 | . . . . 7 134 13 184 20 29 Melee 39 | . . . . . . 7 27 . 5 Projectile 116 | . . . . 7 72 6 28 2 1 AOE 232 | . . . . . 62 . 129 18 23 Terrain Rammed . | . . . . . . . . . . Walls Destroyed . | . . . . . . . . . . Machines Disabled . | . . . . . . . . . . Actions | -11 -10 -10 -10 -9 -8 -7 -6 -6 -6 --------- Run | Yrd Mat Min Exi Min Mat Fac Fac Was Fac Total 9169 | 240 202 238 690 141 1678 2034 2951 141 854 Wait 1226 | . 15 7 . 26 164 48 496 18 452 Move 7364 | 201 183 228 681 114 1371 1854 2265 119 348 Hop . | . . . . . . . . . . Pick Up 69 | 10 1 2 1 . 27 14 14 . . Fast Attach 58 | 8 . . 1 . 17 8 15 1 8 Attach 38 | . . . . . 15 12 7 . 4 Detach 13 | . . . . . 5 7 1 . . Swap 71 | 1 1 . . . 17 20 31 1 . Drop 97 | 4 2 . 3 . 45 21 22 . . Fire 168 | 14 . 1 . . 17 43 70 1 22 Melee 54 | . . . . . . 7 27 . 20 Ram 4 | 2 . . . 1 . . . 1 . Kick . | . . . . . . . . . . Crush 3 | . . . . . . . 3 . . Escape Stasis . | . . . . . . . . . . Rewire 4 | . . . 4 . . . . . . Trap . | . . . . . . . . . . Miscellaneous . | . . . . . . . . . . Route ------- -11/Scrapyard -10/Materials -10/Mines -10/Exiles (discovered 2 exits: *Min x2) -9/Mines -8/Materials -7/Factory -6/Factory -6/Waste -6/Factory History --------- Turn | Location | Event 34 | -11/Scrapyard | Discovered new exit (range 16) 238 | -11/Scrapyard | Entered Materials 346 | -10/Materials | Discovered new exit (range 6) 386 | -10/Materials | Met 8R-AWN 403 | -10/Materials | Entered Mines 404 | -10/Mines | Followed 8R-AWN into the Mines 553 | -10/Mines | Build established: Mutant 573 | -10/Mines | Received a Rocket Launcher from a helpful Derelict 593 | -10/Mines | Discovered new exit (range 5) 598 | -10/Mines | Entered Exiles 615 | -10/Exiles | Discovered new exit (range 15) 626 | -10/Exiles | Welcomed by 8R-AWN 640 | -10/Exiles | Met EX-HEX 713 | -10/Exiles | Met EX-DEC 745 | -10/Exiles | Learned location of Zion (-7) 770 | -10/Exiles | Met EX-BIN 802 | -10/Exiles | Aligned with FarCom system 803 | -10/Exiles | Given EX-Vault access code 847 | -10/Exiles | Opened EX-Vault 858 | -10/Exiles | Found Prototype Ballistic Gun 858 | -10/Exiles | Identified AWS/Gauss 899 | -10/Exiles | Warned to stay clear of 0b10 Research branches 977 | -10/Exiles | Visited The Gauntlet 1177 | -10/Exiles | Discovered new exit (range 14) 1206 | -10/Exiles | Left Exiles lab with AWS/Gauss 1206 | -10/Exiles | Entered Mines 1209 | -9/Mines | Met a Derelict bent on vengeance 1329 | -9/Mines | Discovered new exit (range 11) 1342 | -9/Mines | Entered Materials 1342 | -8/Materials | Evolved 4 slots: Propulsion x2, Utility x2 1666 | -8/Materials | Build established: Scavenger-Mutant 2228 | -8/Materials | Build established: Skirmisher 2365 | -8/Materials | AWS/Gauss suddenly broke down 2542 | -8/Materials | First assault squad dispatched 2608 | -8/Materials | AWS/Gauss suddenly broke down 2735 | -8/Materials | AWS/Gauss suddenly broke down 3016 | -8/Materials | AWS/Gauss suddenly broke down 3206 | -8/Materials | Build established: Mutant 3211 | -8/Materials | Discovered new exit (range 16) 3298 | -8/Materials | Identified exit to Factory 3346 | -8/Materials | Entered Factory 3346 | -7/Factory | Evolved 2 slots: Utility x1, Weapon x1 3698 | -7/Factory | Garrison activated, responded to threat 3702 | -7/Factory | AWS/Gauss suddenly broke down 3822 | -7/Factory | AWS/Gauss suddenly broke down 4139 | -7/Factory | AWS/Gauss suddenly broke down 4736 | -7/Factory | Build established: Skirmisher 5392 | -7/Factory | AWS/Gauss suddenly broke down 5451 | -7/Factory | AWS/Gauss suddenly broke down 5805 | -7/Factory | AWS/Gauss suddenly broke down 6311 | -7/Factory | Discovered new exit (range 9) 6315 | -7/Factory | AWS/Gauss suddenly broke down 6446 | -7/Factory | Lost 3 parts (3n) 6485 | -7/Factory | Identified exit to Factory 6488 | -7/Factory | Entered another Factory area 6488 | -6/Factory | Evolved 2 slots: Power x1, Utility x1 6740 | -6/Factory | Build established: Mutant 6941 | -6/Factory | AWS/Gauss suddenly broke down 7123 | -6/Factory | Cargo convoy interrupted 7145 | -6/Factory | AWS/Gauss suddenly broke down 7175 | -6/Factory | Lost 6 allies 7185 | -6/Factory | AWS/Gauss suddenly broke down 7550 | -6/Factory | Build established: Skirmisher 7633 | -6/Factory | AWS/Gauss suddenly broke down 8120 | -6/Factory | Build established: Assassin 8575 | -6/Factory | Found PL-3XN's Ring of Power 8583 | -6/Factory | Found Prototype Processor 8583 | -6/Factory | Identified Spectral Analyzer 8613 | -6/Factory | Found Prototype Processor 8613 | -6/Factory | Identified Exp. Terrain Scan Processor 10378 | -6/Factory | Discovered new exit (range 21) 10480 | -6/Factory | Sucked down chute 10480 | -6/Factory | Entered Waste 10481 | -6/Waste | Met a frightened Derelict 10485 | -6/Waste | Spotted C-40 Crusher 10495 | -6/Waste | EMP discharged 10495 | -6/Waste | System corruption reached 10% 10507 | -6/Waste | Spotted C-40 Crusher 10554 | -6/Waste | Spotted C-40 Crusher 10555 | -6/Waste | Spotted C-40 Crusher 10565 | -6/Waste | Crushed by Compactor (1 part destroyed, 1 dropped) 10569 | -6/Waste | Crushed by Compactor (1 part destroyed, 2 dropped) 10588 | -6/Waste | Spotted C-40 Crusher 10595 | -6/Waste | EMP discharged 10621 | -6/Waste | Spotted C-40 Crusher 10628 | -6/Waste | Crushed by Compactor (1 part destroyed, 1 dropped) 10630 | -6/Waste | Discovered new exit (range 16) 10632 | -6/Waste | Crushed by Compactor (1 part destroyed, 2 dropped) 10648 | -6/Waste | Entered Factory 10873 | -6/Factory | Build established: Mutant 11481 | -6/Factory | Core integrity fell below 50% 11521 | -6/Factory | Core integrity fell below 20% 11551 | -6/Factory | Lost 6 parts (2n3u1w) 11564 | -6/Factory | System corruption reached 30% 11575 | -6/Factory | Destroyed by G-50 Soldier with Heavy Laser Last Messages --------------- 11540_ K-01 Serf collects debris. 11549_ System corrupted: FCS attempts to trigger Shock Rifle. 11549_ System corrupted: Shock Rifle misfires. 11551_ K-01 Serf collects debris. 11552_ B-48 Gladiator destroyed. 11555_ K-01 Serf collects debris. 11556_ Acquired Corrupted Rnf. Deuterium Engine. 11556_ Integrated Corrupted Rnf. Deuterium Engine (+3). 11558_ Acquired 66 matter. 11558_ K-01 Serf collects debris. 11563_ Acquired Corrupted Lgt. Treads. 11563_ Integrated Corrupted Lgt. Treads (+2). 11564_ System corrupted: Rnf. Deuterium Engine rejected. 11565_ K-01 Serf collects debris. 11568_ Shock Rifle destroyed. 11572_ K-01 Serf collects debris. 11574_ G-50 Soldier knocked back. Map ----- +----------------------------------------------------+ | | | | | | | | | | | | | | | | | | | | | | | | | | | ?????????????????????####################????????? | | ?????????????????????# #????????? | | ?????????????????????# #????????? | | ?????????????????????# #????????? | | ?????????????????????# #????????? | | ?????????????????????# ! #??####### | | ?????????????????##### * #### | | ?????????????????# ; =% + + | | ???????????????### #### | | ????????????####; ;;####+############ | | ????????????# g # h + | | ????????????# # ########## | | ????????????# @ # #??????### | | ????????????# ! R + #??????### | | ????????????# ! k # #??????# "###### | | ????????????# # #??????######??? | | ???????????## * / # #??????????????? | | ???????????# "" # #??????????????? | | ???????????## S""" # #??????????????? | | ????????????# # #??????????????? | | ????????????####;;;;;######## ##########?????? | | ???????????????#######??????# # #?????? | | ????????????????????????????# # """" #?????? | | ????????????????????????????# # """" #?????? | | ????????????????????????????# # """" #?????? | | ????????????????????????????# # """" #?????? | | ????????????????????????????# # """" #?????? | | ????? ? "???????????????????# + """" #?????? | | ????? """?????????????????# # #?????? | | ????? ????????????????# # #?????? | | ????? ################ ################ | | ??????? """"" | | ????????? "" F" | | ??????????" """ !! "" "" | | ??????????" """ ! = | | ?????????"" """ | | ????? #####+################# | +----------------------------------------------------+ Best States ------------- Heat Dissipation 51 Energy Generation 31 Energy Capacity 550 Matter Stores 550 Matter Capacity 550 Sight Range 24 Robot Scan Range 16 Terrain Scan Density 10 Corruption Containment 8 Armor Coverage 225 Evasion (%) 55 Targeting Accuracy 5 Recoil Reduction 4 Particle Charging 20 Item Schematics ----------------- None Robot Schematics ------------------ None Fabricated ------------ Nothing Alien Tech Used ----------------- None Achievements -------------- Backstab I Spy Part-time Excavator Please Form A Line Serviceable Loadout Significant Disruption Use The Force Challenges ------------ None Game ------ Seed SubdwellerTitaniumMembrane Manual? 0 Play Time 01:55:53 Cumulative 3.5 hours Start 2024.07.28 @ 22:14:23 End 2024.07.29 @ 12:30:06 Sessions 6 Manual Loads 0 Difficulty Rogue Special Mode None Game No. 3 Rogue 3 Adventurer 0 Explorer 0 Win Type - Total 0 Types 0/0/0/0/0/0/0/0/0 Lore% 7 Gallery% 10 Achievement% 12 Wizard Run 0 Options --------- Layout 2 ASCII 0 Keyboard 1 Movement Arrows Keybinds 0 Fullscreen 2 Font 20/SmallcapsGlow Map View 56x54 Zoom Use 0% Tactical HUD 1 Map Filters NONE Filters NONE Steam X RUN: 6fca5a17-a78a-4fc7-a750-3efd86037f13